bitfinex-derivatives/quotes_ETHF0:USTF0_20220103
["timestamp","ask_amount","ask_price","bid_price","bid_amount"]
[1641198506317,1.48514163,3814.7,3814.6,0.229991]
[1641198506717,1.74628364,3814.7,3814.5,2.00479]
[1641198507318,1.48514163,3814.7,3814.5,2.00479]
[1641198507919,0.26114201,3814.6,3814.5,2.00479]
[1641198509319,1.48514163,3814.7,3814.5,2.00479]
[1641198512529,1.48514163,3814.7,3814.6,0.229991]
[1641198512931,1.48514163,3814.7,3814.5,2.00479]
[1641198513632,1.48514163,3814.7,3814.6,0.229991]
[1641198513834,1.48514163,3814.7,3814.5,2.00479]
[1641198515136,1.48514163,3814.8,3814.5,2.00479]
[1641198515334,1.48514163,3814.8,3814.6,0.229991]
[1641198515734,1.48514163,3814.8,3814.5,2.00479]
[1641198516536,1.48514163,3814.8,3814.6,0.229991]
[1641198516739,1.48514163,3814.8,3814.5,2.00479]
[1641198517136,1.48514163,3814.8,3814.5,2.88636934]
[1641198519638,1.48514163,3814.8,3814.6,0.229991]
[1641198519839,1.48514163,3814.8,3814.5,2.88636934]
[1641198520240,1.48514163,3814.7,3814.5,2.88636934]
[1641198520740,1.48514163,3814.7,3814.6,0.229991]
[1641198521341,1.74628364,3814.7,3814.5,2.88636934]
[1641198522443,1.48514163,3814.7,3814.5,2.00479]
[1641198522843,1.48514163,3814.7,3814.6,0.229991]
[1641198523546,1.77947137,3814.9,3814.5,2.00479]
[1641198524547,25.06879786,3814.7,3814.2,0.88157934]
[1641198524747,26.56879786,3814.7,3813.9,1.17319158]
[1641198524948,2.00479,3814.1,3813.9,1.17319158]
[1641198525147,2.63689,3814.1,3813.9,1.17319158]
[1641198526755,1.18644584,3814.0,3813.4,1.17319158]
[1641198528149,1.44758785,3814.0,3813.4,1.17319158]
[1641198529353,1.44758785,3814.0,3813.3,1.17319158]
[1641198534658,1.18644584,3813.9,3813.3,1.17319158]
[1641198543171,1.18644584,3813.6,3813.2,2.00479]
[1641198543870,1.18644584,3813.7,3813.2,2.00479]
[1641198545472,0.88994906,3813.4,3813.3,0.88251492]
[1641198545673,0.88994906,3813.4,3813.3,1.11250592]
[1641198545873,0.88994906,3813.4,3813.3,0.88251492]
[1641198546274,0.88994906,3813.4,3813.2,2.00479]
[1641198546475,0.88994906,3813.5,3813.2,3.17798158]
[1641198546875,0.88994906,3813.5,3813.3,0.229991]
[1641198547075,0.88994906,3813.5,3813.2,3.17798158]
[1641198547976,1.58284906,3813.5,3813.2,3.17798158]
[1641198548179,0.88994906,3813.4,3813.3,0.88221514]
[1641198548977,0.88994906,3813.4,3813.3,1.11220614]
[1641198549376,0.88994906,3813.4,3813.3,0.88221514]
[1641198549877,0.28410444,3813.4,3813.2,2.88700514]
[1641198550878,0.88982308,3813.3,3813.2,2.88700514]
[1641198551076,0.88982308,3813.3,3813.2,3.11699614]
[1641198551377,0.88982308,3813.3,3813.2,1.11220614]
[1641198552077,1.01217908,3813.3,3813.2,0.88221514]
[1641198552279,1.01217908,3813.3,3812.6,15.8956]
[1641198552679,1.01217908,3813.3,3812.3,1.75804246]
[1641198552880,6.25710065,3813.3,3812.3,1.75804246]
[1641198553083,2.00479,3812.9,3812.3,1.75804246]
[1641198553480,2.00479,3812.9,3812.1,2.00479]
[1641198560389,2.00479,3812.9,3812.2,0.128157]
[1641198560589,2.00479,3812.9,3812.2,0.6402]
[1641198563991,2.00479,3812.9,3812.1,2.00479]
[1641198564592,2.00479,3812.9,3812.2,0.128157]
[1641198565993,2.00479,3812.9,3812.1,2.00479]
[1641198569098,2.00479,3812.9,3812.2,0.128157]
[1641198569696,2.00479,3812.9,3812.1,2.00479]
[1641198583014,2.03108072,3812.8,3812.1,2.00479]
[1641198584116,3.51423472,3812.8,3812.7,0.88057041]
[1641198588221,2.03108072,3812.8,3812.7,0.88057041]
[1641198589922,3.51699292,3812.8,3812.7,0.88057041]
[1641198592424,3.51699292,3812.8,3812.4,2.05486038]
[1641198592626,2.03108072,3812.8,3812.4,0.88057041]
[1641198594634,2.03108072,3812.8,3812.3,0.88057041]
[1641198599838,0.88966805,3812.5,3812.3,0.88057041]
[1641198600041,0.88966805,3812.5,3812.4,0.229991]
[1641198600941,0.88966805,3812.5,3812.3,0.88057041]
[1641198601141,0.88966805,3812.5,3812.4,0.229991]
[1641198601643,0.88966805,3812.5,3812.3,0.88057041]
[1641198602343,0.88966805,3812.5,3812.4,0.229991]
[1641198602744,0.88966805,3812.5,3812.3,0.88057041]
[1641198603345,0.88966805,3812.5,3812.4,0.229991]
[1641198603747,0.88966805,3812.5,3812.3,0.88057041]
[1641198604148,2.00479,3812.9,3812.1,2.00479]
[1641198604746,2.00479,3812.9,3812.2,0.128157]
[1641198605847,2.00479,3812.9,3812.1,2.00479]
[1641198606247,0.88966227,3812.5,3812.3,0.88294203]
[1641198606448,0.88966227,3812.5,3812.4,0.229991]
[1641198608051,0.88966227,3812.5,3812.3,0.88294203]
[1641198608253,0.88966227,3812.5,3812.4,0.229991]
[1641198609253,0.88966227,3812.5,3812.3,0.88294203]
[1641198609453,0.88966227,3812.6,3812.3,0.88294203]
[1641198610456,0.88966227,3812.5,3812.3,0.88294203]
[1641198611555,0.88966227,3812.5,3812.4,0.229991]
[1641198612157,0.88966227,3812.5,3812.3,0.88294203]
[1641198612556,0.88966227,3812.5,3812.4,0.229991]
[1641198612957,1.48277045,3812.7,3812.1,2.00479]
[1641198613157,1.48277045,3812.7,3812.4,1.17725604]
[1641198615161,2.26961646,3812.7,3812.4,1.17725604]
[1641198615362,2.26961646,3812.7,3812.0,2.00479]
[1641198615363,0.78684601,3812.7,3812.5,0.88514645]
[1641198616363,0.78684601,3812.7,3812.6,0.88514645]
[1641198617164,0.78686017,3812.7,3812.6,0.88514645]
[1641198618363,0.78686017,3812.7,3812.4,0.88514645]
[1641198618563,2.56618471,3812.7,3812.4,0.88514645]
[1641198619464,2.56618471,3812.7,3812.0,2.00479]
[1641198619465,0.78686017,3812.7,3812.2,0.88514645]
[1641198622267,2.79165017,3812.7,3812.2,0.88514645]
[1641198624971,2.00479,3812.7,3812.2,0.88514645]
[1641198625171,0.74295658,3812.8,3812.2,12.87334645]
[1641198626373,0.74295658,3812.8,3812.7,2.00479]
[1641198626572,1.77932454,3813.3,3812.7,2.234781]
[1641198627574,1.77932454,3813.4,3812.7,2.234781]
[1641198628579,1.77932454,3813.3,3812.7,2.234781]
[1641198629279,1.18720648,3812.8,3812.7,2.234781]
[1641198630178,1.77932454,3813.4,3812.7,2.234781]
[1641198630381,1.77932454,3813.3,3812.7,2.234781]
[1641198630585,1.77932454,3813.3,3812.8,0.122356]
[1641198630779,1.77932454,3813.3,3813.0,11.26]
[1641198630982,1.77932454,3813.3,3813.1,0.229991]
[1641198631382,0.74295658,3813.8,3813.2,1.5]
[1641198631582,3.70692612,3814.2,3813.6,2.81032576]
[1641198631781,2.22590465,3814.0,3813.7,11.382356]
[1641198631980,2.22590465,3814.0,3813.9,22.45998227]
[1641198632180,2.22590465,3814.0,3813.9,34.47708227]
[1641198632781,3.70692612,3814.5,3813.9,34.47708227]
[1641198632982,3.70692612,3814.5,3813.9,34.60523927]
[1641198633183,2.00479,3814.7,3813.9,34.60523927]
[1641198636290,2.00479,3814.7,3814.0,12.1431706]
[1641198637290,2.00479,3814.7,3814.0,11.26]
[1641198639994,2.00479,3814.7,3813.9,1.0113276]
[1641198640593,0.7976,3814.9,3814.2,2.00479]
[1641198640996,3.02292194,3814.9,3814.2,2.00479]
[1641198645396,2.22532194,3814.8,3814.2,2.00479]
[1641198645999,2.22532194,3814.8,3814.2,2.132947]
[1641198646699,2.00479,3814.7,3814.2,0.128157]
[1641198648100,1.48360903,3814.3,3814.2,0.128157]
[1641198648498,1.48360903,3814.3,3814.2,0.229991]
[1641198648797,1.48360903,3814.3,3813.8,2.8879606]
[1641198648998,1.48360903,3814.3,3813.9,0.128157]
[1641198650500,0.88689409,3814.4,3813.9,0.128157]
[1641198651300,0.88689409,3814.5,3813.9,0.128157]
[1641198652199,0.88689409,3814.5,3813.8,2.00479]
[1641198652599,0.88689409,3814.6,3813.8,2.00479]
[1641198654101,0.88689409,3814.5,3813.8,2.00479]
[1641198654302,0.122356,3814.4,3813.8,2.00479]
[1641198655101,0.88689409,3814.2,3813.8,2.00479]
[1641198656902,0.88689409,3814.2,3813.4,2.00479]
[1641198657302,2.89168409,3814.3,3813.4,2.00479]
[1641198658002,0.88689409,3814.2,3813.4,2.00479]
[1641198660107,0.88689409,3814.1,3813.4,2.00479]
[1641198660305,1.42359409,3814.1,3813.4,2.00479]
[1641198664215,0.5367,3814.1,3813.4,2.00479]
[1641198664415,0.88689409,3814.2,3813.4,2.00479]
[1641198665816,0.88689409,3814.1,3813.4,2.00479]
[1641198666616,0.88689409,3814.2,3813.4,2.00479]
[1641198668622,0.88689409,3814.2,3813.4,2.132947]
[1641198669521,2.89168409,3814.3,3813.4,2.132947]
[1641198678534,0.88689409,3814.2,3813.4,2.00479]
[1641198679832,0.88689409,3814.2,3813.5,0.128157]
[1641198681137,2.00479,3814.3,3813.5,0.128157]
[1641198681338,1.18252546,3813.7,3813.6,0.8831706]
[1641198681537,1.18252546,3813.7,3813.6,1.1131616]
[1641198682736,1.18252546,3813.7,3813.6,0.8831706]
[1641198683238,1.18252546,3813.7,3813.6,1.1131616]
[1641198685038,1.18252546,3813.7,3813.6,0.229991]
[1641198685239,1.48360903,3814.0,3813.6,0.229991]
[1641198685240,1.18252546,3813.8,3813.6,0.229991]
[1641198686342,1.18252546,3813.8,3813.7,0.88694094]
[1641198691648,1.18252546,3813.8,3813.7,1.11693194]
[1641198692049,1.18252546,3813.8,3813.7,0.88694094]
[1641198692647,1.18252546,3813.8,3813.7,1.11693194]
[1641198692849,1.18252546,3813.8,3813.7,0.88694094]
[1641198696651,1.18252546,3813.8,3813.7,1.11693194]
[1641198697453,1.18252546,3813.8,3813.7,0.88694094]
[1641198699657,1.18252546,3813.8,3813.4,1.17725604]
[1641198699858,1.18252546,3813.8,3813.1,15.5303]
[1641198700058,1.18252546,3813.8,3813.0,2.00479]
[1641198700760,6.72748481,3814.0,3813.2,0.74268553]
[1641198700959,2.00479,3813.6,3813.2,0.74268553]
[1641198701759,2.00479,3813.6,3813.0,2.00479]
[1641198702560,3.48839903,3813.6,3813.0,2.00479]
[1641198703361,0.27016049,3813.5,3813.0,2.00479]
[1641198707663,0.122356,3813.4,3813.0,2.00479]
[1641198707864,0.27016049,3813.5,3813.0,2.00479]
[1641198708664,1.75376952,3813.5,3813.0,2.00479]
[1641198709966,1.48360903,3813.4,3813.0,2.00479]
[1641198711669,1.18817364,3813.1,3813.0,3.18966466]
[1641198712167,1.48360903,3813.3,3813.0,2.00479]
[1641198713373,1.48360903,3813.3,3813.0,3.18966466]
[1641198713570,1.18819355,3813.1,3813.0,3.18966466]
[1641198714374,1.18819355,3813.1,3813.0,1.18487466]
[1641198714573,1.18819355,3813.1,3813.0,1.41486566]
[1641198714774,1.18819355,3813.1,3813.0,12.44487466]
[1641198715774,1.18819355,3813.1,3813.0,12.67486566]
[1641198716575,1.18819355,3813.1,3813.0,11.26]
[1641198716774,1.18819355,3813.1,3813.0,11.489991]
[1641198716975,1.18819355,3813.2,3813.0,11.489991]
[1641198717174,1.18819355,3813.2,3812.9,0.128157]
[1641198717375,1.18819355,3813.2,3812.8,12.00279952]
[1641198717777,1.18819355,3813.2,3813.1,1.18496637]
[1641198717977,1.18819355,3813.2,3813.1,1.41495737]
[1641198718876,1.18819355,3813.2,3813.1,12.67495737]
[1641198719079,1.18819355,3813.2,3813.1,1.18496637]
[1641198719776,1.18819355,3813.2,3813.1,1.41495737]
[1641198720180,1.18819355,3813.2,3813.1,1.18496637]
[1641198720780,1.18819355,3813.2,3813.1,12.44496637]
[1641198720979,1.18819355,3813.2,3813.1,12.67495737]
[1641198721382,1.18819355,3813.2,3813.1,14.67974737]
[1641198722580,1.48360903,3813.4,3813.1,13.26479]
[1641198722780,1.48360903,3813.4,3813.1,13.494781]
[1641198723081,1.48360903,3813.4,3813.1,13.26479]
[1641198723681,1.48360903,3813.4,3813.3,0.88890822]
[1641198725082,1.48360903,3813.4,3813.3,1.11889922]
[1641198725683,1.48360903,3813.4,3813.3,0.88890822]
[1641198726285,1.48360903,3813.4,3813.3,1.11889922]
[1641198726685,1.48360903,3813.4,3813.3,0.88890822]
[1641198727484,1.48360903,3813.4,3813.3,1.11889922]
[1641198728088,1.48360903,3813.4,3813.3,0.88890822]
[1641198728487,1.48360903,3813.4,3813.3,1.11889922]
[1641198729590,1.48360903,3813.4,3813.3,0.88890822]
[1641198730390,1.48360903,3813.4,3813.3,1.11889922]
[1641198730791,1.48360903,3813.4,3813.3,0.88890822]
[1641198731590,1.48360903,3813.4,3813.3,1.11889922]
[1641198732191,1.48360903,3813.4,3813.3,0.88890822]
[1641198732593,1.48360903,3813.4,3813.3,1.11889922]
[1641198733396,2.04450903,3813.4,3813.3,1.11889922]
[1641198733595,2.04450903,3813.4,3813.3,0.88890822]
[1641198734695,2.31466952,3813.4,3813.3,0.88890822]
[1641198734897,1.75376952,3813.4,3813.3,0.88890822]
[1641198735099,1.75376952,3813.4,3813.0,1.18496637]
[1641198735797,1.48360903,3813.4,3813.0,1.18496637]
[1641198736597,1.18823604,3813.1,3813.0,1.18496637]
[1641198736797,1.18823604,3813.1,3813.0,1.41495737]
[1641198737399,1.18823604,3813.1,3813.0,1.18496637]
[1641198738400,26.53231138,3813.1,3813.0,1.18496637]
[1641198738699,25.34407534,3813.1,3812.4,1.76643166]
[1641198738902,28.12576537,3813.1,3812.2,17.86299]
[1641198739500,30.13055537,3813.1,3812.2,17.86299]
[1641198740100,1.48584835,3812.8,3812.2,17.86299]
[1641198740502,1.48584835,3812.8,3812.2,2.00479]
[1641198740900,2.29164835,3812.8,3812.2,2.00479]
[1641198741901,0.27016049,3812.7,3812.2,2.00479]
[1641198744903,0.27016049,3812.7,3812.0,0.74298725]
[1641198745106,2.29164835,3812.8,3811.9,1.76643166]
[1641198745305,0.8058,3812.8,3811.8,2.00479]
[1641198745505,2.00479,3812.3,3811.5,11.26]
[1641198751313,2.00479,3812.3,3811.6,0.128157]
[1641198752214,2.00479,3812.3,3811.6,0.664057]
[1641198752414,2.00479,3812.3,3811.6,11.924057]
[1641198753415,2.00479,3812.3,3811.6,11.7959]
[1641198755219,2.00479,3812.3,3811.6,11.924057]
[1641198756423,2.00479,3812.3,3811.8,11.26]
[1641198757025,2.00479,3812.3,3811.7,0.8859103]
[1641198757621,2.00479,3811.9,3811.7,0.8859103]
[1641198758224,2.00479,3811.9,3811.6,0.8859103]
[1641198758423,2.00479,3811.9,3811.7,0.229991]
[1641198760123,1e-08,3811.9,3811.7,11.489991]
[1641198761125,0.88702808,3811.9,3811.7,11.489991]
[1641198761524,0.88702807,3811.9,3811.7,11.489991]
[1641198761823,0.88702807,3811.9,3811.7,0.229991]
[1641198762025,0.88702807,3811.9,3811.6,1.76643166]
[1641198762226,0.88702807,3811.9,3811.7,0.229991]
[1641198762626,0.88702807,3811.9,3811.7,11.489991]
[1641198763128,0.88702807,3811.9,3811.7,0.229991]
[1641198763328,0.88702807,3812.0,3811.7,1.76643166]
[1641198764330,0.88702807,3811.9,3811.7,1.76643166]
[1641198764531,0.88702807,3811.9,3811.6,1.76643166]
[1641198764931,0.88702807,3811.9,3811.7,0.229991]
[1641198765532,0.88702807,3811.9,3811.6,1.76643166]
[1641198767436,0.88702807,3811.9,3811.7,0.229991]
[1641198767636,0.88702807,3811.9,3811.6,1.76643166]
[1641198768637,0.88702807,3811.9,3811.7,0.229991]
[1641198768837,0.88702807,3811.9,3811.6,1.76643166]
[1641198772640,0.88702807,3811.9,3811.7,0.229991]
[1641198773040,0.88702807,3811.9,3811.6,1.76643166]
[1641198775143,2.06974413,3812.2,3811.6,1.76643166]
[1641198775343,0.88702807,3812.2,3811.4,4.51425461]
[1641198776545,0.88702807,3812.2,3811.9,1.18643583]
[1641198777647,0.88702807,3812.1,3811.9,1.18643583]
[1641198779649,0.88702807,3812.1,3812.0,0.229991]
[1641198780151,0.88702807,3812.1,3811.9,1.18643583]
[1641198786454,0.88702807,3812.2,3811.9,1.18643583]
[1641198789255,0.88702807,3812.1,3811.9,1.18643583]
[1641198791758,2.00479,3812.3,3811.9,1.18643583]
[1641198791759,0.88702807,3812.2,3811.9,1.18643583]
[1641198792462,0.88702807,3812.1,3811.9,1.18643583]
[1641198793864,0.88702807,3812.1,3811.8,1.18643583]
[1641198803676,0.88702807,3812.1,3811.9,0.229991]
[1641198803876,0.88702807,3812.1,3811.8,1.18643583]
[1641198805177,0.33723842,3812.2,3811.4,2.74782295]
[1641198805377,1.18271606,3812.1,3811.5,1.76643166]
[1641198806680,0.89168409,3811.8,3811.5,1.76643166]
[1641198806882,0.89168409,3811.8,3811.6,0.358148]
[1641198807481,0.89168409,3811.8,3811.6,0.229991]
[1641198807684,0.89168409,3811.8,3811.5,1.76643166]
[1641198809586,0.89168409,3811.8,3811.6,0.229991]
[1641198809884,0.89168409,3811.8,3811.5,1.76643166]
[1641198810784,0.89168409,3811.8,3811.6,0.229991]
[1641198811086,0.89168409,3811.8,3811.5,1.76643166]
[1641198811991,0.89168409,3811.8,3811.6,0.229991]
[1641198812488,0.89168409,3811.8,3811.5,1.76643166]
[1641198812688,0.89168409,3811.9,3811.5,1.76643166]
[1641198814789,0.89168409,3811.9,3811.5,2.50946461]
[1641198818295,0.89168409,3811.9,3811.5,1.76643166]
[1641198819193,0.89168409,3811.8,3811.5,1.76643166]
[1641198819394,0.89168409,3811.8,3811.6,0.229991]
[1641198821196,0.89168409,3811.8,3811.5,1.76643166]
[1641198821898,0.89168409,3811.8,3811.6,0.229991]
[1641198822298,0.89168409,3811.8,3811.5,1.76643166]
[1641198822597,0.89168409,3811.8,3811.5,3.77122166]
[1641198824602,0.89168409,3811.8,3811.6,0.229991]
[1641198824802,0.89168409,3811.8,3811.5,3.77122166]
[1641198826904,0.89168409,3811.8,3811.6,0.229991]
[1641198827104,0.89168409,3811.8,3811.5,3.77122166]
[1641198828605,0.89168409,3811.8,3811.6,0.229991]
[1641198828805,0.89168409,3811.8,3811.5,3.77122166]
[1641198831107,0.89168409,3811.8,3811.6,0.229991]
[1641198831306,0.89168409,3811.8,3811.5,3.77122166]
[1641198831908,0.89168409,3811.8,3811.6,0.229991]
[1641198832307,0.89168409,3811.8,3811.5,3.77122166]
[1641198833007,0.89168409,3811.8,3811.6,0.229991]
[1641198833208,0.89168409,3811.8,3811.5,3.77122166]
[1641198835309,0.89168409,3811.8,3811.6,0.229991]
[1641198835909,0.89168409,3811.8,3811.5,3.77122166]
[1641198836210,0.89168409,3811.8,3811.6,0.229991]
[1641198836413,0.89168409,3811.8,3811.5,3.77122166]
[1641198839515,0.89168409,3811.8,3811.5,2.00479]
[1641198840215,0.89168409,3811.8,3811.6,0.229991]
[1641198840514,0.89168409,3811.8,3811.5,2.00479]
[1641198840715,0.89168409,3811.8,3811.5,3.77122166]
[1641198842017,0.89168409,3811.8,3811.5,2.00479]
[1641198842515,0.89168409,3811.8,3811.5,3.77122166]
[1641198844021,0.89168409,3811.6,3811.5,2.00479]
[1641198847424,0.89168409,3811.6,3811.5,2.234781]
[1641198847625,0.89168409,3811.6,3811.5,2.00479]
[1641198849028,1.18271606,3811.8,3811.5,2.00479]
[1641198849430,1.18271606,3811.7,3811.5,2.00479]
[1641198850431,1.18271606,3811.7,3811.5,2.234781]
[1641198850929,1.18271606,3811.7,3811.5,2.00479]
[1641198851430,1.18271606,3811.7,3811.2,0.61634038]
[1641198851631,0.5987,3811.7,3811.2,2.38277204]
[1641198852832,2.00479,3811.4,3811.2,1.76643166]
[1641198853233,2.00479,3811.4,3810.9,1.76643166]
[1641198854234,0.89066368,3811.2,3810.9,1.76643166]
[1641198858938,0.89066368,3811.2,3811.0,0.229991]
[1641198859137,0.89066368,3811.2,3810.8,1.76643166]
[1641198859742,0.89066368,3811.2,3810.9,1.76643166]
[1641198861441,0.89066368,3811.2,3810.8,1.76643166]
[1641198862542,0.89066368,3811.2,3810.9,1.76643166]
[1641198863646,0.89066368,3811.2,3810.8,1.76643166]
[1641198865749,0.89066368,3811.2,3810.9,1.76643166]
[1641198866550,0.89066368,3811.1,3810.9,1.76643166]
[1641198866751,0.89066368,3811.1,3810.8,1.76643166]
[1641198867552,0.89066368,3811.1,3810.9,0.229991]
[1641198867751,0.89066368,3811.1,3810.8,1.76643166]
[1641198869054,0.89066368,3810.9,3810.8,1.76643166]
[1641198869253,0.89066368,3810.9,3810.8,1.99642266]
[1641198869455,0.89066368,3810.9,3810.8,0.229991]
[1641198869956,0.89066368,3810.9,3810.6,1.76643166]
[1641198870356,0.89066368,3810.9,3810.7,0.229991]
[1641198870857,0.89066368,3810.9,3810.6,1.76643166]
[1641198871658,0.89066368,3810.9,3810.7,0.229991]
[1641198872260,0.89066368,3810.9,3810.6,1.76643166]
[1641198872659,0.89066368,3810.9,3810.7,0.229991]
[1641198875158,0.89066368,3810.8,3810.7,0.229991]
[1641198875757,0.89066368,3810.9,3810.7,0.229991]
[1641198875958,0.89066368,3810.9,3810.6,1.76643166]
[1641198876159,0.89066368,3810.9,3810.7,0.229991]
[1641198876759,0.89066368,3810.9,3810.6,1.76643166]
[1641198877362,0.89066368,3810.9,3810.7,0.229991]
[1641198877564,0.89066368,3810.9,3810.6,1.76643166]
[1641198878863,1.18271606,3811.2,3810.7,0.88814778]
[1641198879064,3.50479,3811.4,3810.7,0.88814778]
[1641198879763,1.5,3811.3,3810.7,0.88814778]
[1641198879963,2.1147,3811.3,3810.7,0.88814778]
[1641198880365,2.1147,3811.3,3810.5,2.00479]
[1641198880366,2.1147,3811.3,3810.6,0.88814778]
[1641198881465,0.6147,3811.3,3810.6,0.88814778]
[1641198882066,2.00479,3811.4,3810.6,1.01630478]
[1641198884369,2.00479,3811.4,3810.7,0.88814778]
[1641198884570,3.50479,3811.4,3810.7,0.88814778]
[1641198884770,2.00479,3811.4,3810.7,0.88814778]
[1641198885374,2.00479,3811.4,3810.6,0.88814778]
[1641198886271,2.00479,3811.4,3810.7,0.88814778]
[1641198887672,2.00479,3811.4,3810.8,0.128157]
[1641198888074,2.00479,3811.4,3810.8,1.01630478]
[1641198889374,2.00479,3811.4,3810.8,12.27630478]
[1641198889778,2.00479,3811.4,3811.1,0.88814778]
[1641198890075,2.00479,3811.4,3811.2,0.229991]
[1641198890274,2.00479,3811.4,3811.1,1.55104778]
[1641198891078,2.00479,3811.4,3811.1,0.6629]
[1641198891278,2.00479,3811.4,3811.2,0.229991]
[1641198892177,0.36589874,3811.3,3811.2,0.229991]
[1641198894883,0.36589874,3811.3,3811.1,0.6629]
[1641198895184,0.36589874,3811.3,3811.2,0.229991]
[1641198895885,0.36589874,3811.3,3810.9,1.76643166]
[1641198897186,0.89082453,3811.2,3810.9,1.76643166]
[1641198897386,0.89082453,3811.2,3811.0,0.229991]
[1641198898289,1.5486148,3811.3,3811.0,0.229991]
[1641198899090,1.5486148,3811.3,3810.8,0.128157]
[1641198899489,1.5486148,3811.3,3810.8,1.89458866]
[1641198900595,1.5486148,3811.3,3810.8,0.128157]
[1641198901696,1.5486148,3811.3,3810.8,1.89458866]
[1641198902798,1.5486148,3811.3,3810.8,0.128157]
[1641198903699,0.36589874,3811.3,3810.8,1.89458866]
[1641198906803,0.36589874,3811.3,3810.8,1.76643166]
[1641198908006,0.36589874,3811.3,3811.2,1.18905926]
[1641198908905,0.36589874,3811.3,3811.1,1.18905926]
[1641198911004,0.36589874,3811.3,3811.0,1.18905926]
[1641198916311,1.85174709,3811.3,3811.2,0.89169254]
[1641198918412,1.85174709,3811.3,3811.0,1.18905926]
[1641198919415,1.48584835,3811.3,3811.2,0.8916901]
[1641198921516,3.49063835,3811.4,3811.2,0.8916901]
[1641198922715,2.00479,3811.4,3811.2,0.8916901]
[1641198922916,2.00479,3811.4,3811.0,0.8916901]
[1641198923514,1.48024628,3811.3,3811.1,0.8916901]
[1641198924516,1.48024628,3811.2,3811.0,0.8916901]
[1641198927117,1.48024628,3811.2,3811.1,0.229991]
[1641198928018,3.48503628,3811.4,3810.9,1.18905926]
[1641198928818,3.48503628,3811.4,3811.2,0.89144039]
[1641198929919,3.48503628,3811.4,3811.3,0.229991]
[1641198931123,2.00479,3811.4,3811.3,1.12143139]
[1641198934324,2.00479,3811.4,3811.3,0.89144039]
[1641198934728,2.00479,3811.4,3811.3,1.12143139]
[1641198934927,2.00479,3811.4,3811.3,0.89144039]
[1641198935728,2.38065501,3811.4,3811.3,1.12143139]
[1641198936129,2.38065501,3811.4,3811.3,0.89144039]
[1641198937131,2.38065501,3811.4,3811.3,1.12143139]
[1641198937530,2.38065501,3811.4,3811.3,0.89144039]
[1641198938031,2.38065501,3811.4,3811.3,1.12143139]
[1641198938232,2.38065501,3811.4,3811.3,0.89144039]
[1641198940633,2.38065501,3811.4,3811.3,1.12143139]
[1641198941236,2.38065501,3811.4,3811.3,0.89144039]
[1641198941639,2.38065501,3811.4,3811.3,1.12143139]
[1641198942438,2.38065501,3811.4,3811.3,0.89144039]
[1641198942638,2.38065501,3811.4,3811.3,1.12143139]
[1641198943140,2.38065501,3811.4,3811.3,0.89144039]
[1641198944038,2.38065501,3811.4,3811.3,1.12143139]
[1641198944241,2.38065501,3811.4,3811.3,0.89144039]
[1641198945441,2.38065501,3811.4,3811.2,0.89144039]
[1641198945442,3.86090129,3811.4,3811.2,0.89144039]
[1641198946042,0.37586501,3811.3,3811.2,0.89144039]
[1641198946242,0.37586501,3811.3,3811.2,1.12143139]
[1641198946846,0.37586501,3811.3,3811.2,0.89144039]
[1641198947143,0.37586501,3811.3,3811.2,1.12143139]
[1641198947544,0.37586501,3811.3,3811.2,0.89144039]
[1641198948045,0.37586501,3811.3,3811.2,1.12143139]
[1641198948244,0.37586501,3811.3,3811.2,0.89144039]
[1641198949048,0.37586501,3811.3,3811.2,1.12143139]
[1641198949752,1.85611129,3811.3,3811.2,0.229991]
[1641198949948,1.85611129,3811.3,3811.1,0.89144039]
[1641198950149,1.85611129,3811.3,3811.2,0.229991]
[1641198951355,0.37586501,3811.3,3811.2,1.12143139]
[1641198951553,0.37586501,3811.3,3811.2,0.89144039]
[1641198952455,0.37586501,3811.3,3811.2,1.12143139]
[1641198953455,0.37586501,3811.3,3811.2,0.89144039]
[1641198954457,0.37586501,3811.3,3811.2,1.12143139]
[1641198955957,0.37586501,3811.3,3811.2,0.89144039]
[1641198956656,0.37586501,3811.3,3811.2,1.12143139]
[1641198956857,0.37586501,3811.3,3811.2,0.89144039]
[1641198957763,0.37586501,3811.3,3811.2,1.12143139]
[1641198957961,0.37586501,3811.3,3811.2,0.229991]
[1641198958660,0.37586501,3811.3,3811.0,1.18905926]
[1641198959260,0.37586501,3811.3,3811.1,0.229991]
[1641198959461,0.37586501,3811.3,3811.0,1.18905926]
[1641198960964,0.37586501,3811.3,3811.2,0.89144587]
[1641198962166,0.37586501,3811.3,3811.2,1.12143687]
[1641198962564,0.37586501,3811.3,3811.2,0.89144587]
[1641198963270,0.37586501,3811.3,3811.2,1.12143687]
[1641198963768,3.48503628,3811.4,3811.2,1.12143687]
[1641198963969,2.00479,3811.4,3811.2,0.229991]
[1641198964669,2.00479,3811.4,3811.0,1.18905926]
[1641198965069,2.00479,3811.4,3811.1,1.18905926]
[1641198965268,2.00479,3811.4,3811.2,0.229991]
[1641198966470,2.00479,3811.4,3811.3,0.89141151]
[1641198967875,2.00479,3811.4,3811.3,1.12140251]
[1641198968273,2.00479,3811.4,3811.3,0.89141151]
[1641198968476,2.00479,3811.4,3811.1,1.18905926]
[1641198969776,2.00479,3811.4,3811.2,0.229991]
[1641198970177,2.00479,3811.4,3811.1,1.18905926]
[1641198972480,2.00479,3811.4,3811.2,0.229991]
[1641198973484,2.00479,3811.4,3811.1,1.18905926]
[1641198973683,3.48503628,3811.4,3811.3,0.89179644]
[1641198973982,3.48503628,3811.4,3811.1,1.18905926]
[1641198974183,2.00479,3811.4,3811.1,1.18905926]
[1641198975282,2.00479,3811.4,3811.2,0.229991]
[1641198975483,2.00479,3811.4,3811.3,0.89134479]
[1641198978789,2.00479,3811.4,3811.3,1.12133579]
[1641198978990,2.00479,3811.4,3811.3,0.89134479]
[1641198979989,2.00479,3811.4,3811.3,1.12133579]
[1641198980590,2.00479,3811.4,3811.3,0.89134479]
[1641198980892,2.00479,3811.4,3811.3,1.12133579]
[1641198981294,2.00479,3811.4,3811.3,0.89134479]
[1641198982195,2.00479,3811.4,3811.3,1.12133579]
[1641198982395,2.00479,3811.4,3811.3,0.89134479]
[1641198984199,2.00479,3811.4,3811.2,0.89134479]
[1641198984200,3.01778751,3811.4,3811.2,0.89134479]
[1641198985098,3.01778751,3811.4,3811.3,0.229991]
[1641198985300,3.01778751,3811.4,3811.2,0.89134479]
[1641198986200,1.01299751,3811.4,3811.2,0.89134479]
[1641198986602,1.01299751,3811.4,3811.3,0.229991]
[1641198986800,3.01778751,3811.4,3811.2,0.89134479]
[1641198988103,0.36959751,3811.3,3811.2,0.89134479]
[1641198989808,0.36959751,3811.3,3811.1,0.89134479]
[1641198990508,1.18424148,3811.2,3811.1,0.89134479]